bitfinex-derivatives/quotes_ETHF0:USTF0_20241022
["timestamp","ask_amount","ask_price","bid_price","bid_amount"]
[1729607908520,0.37921,2638.3,2638.0,3.2078]
[1729607908721,3.65,2638.5,2638.0,3.2078]
[1729607909126,0.37918,2638.4,2638.0,3.2078]
[1729607909325,0.37923,2638.1,2638.0,3.2078]
[1729607910119,0.37925,2638.0,2637.8,1.9069]
[1729607910325,0.37926,2637.9,2637.8,1.9069]
[1729607910532,0.37927,2637.8,2637.7,3.2078]
[1729607910725,4.19813362,2638.2,2637.7,3.2078]
[1729607910927,0.37927,2637.8,2637.7,3.2078]
[1729607911431,3.65,2637.9,2637.3,3.2078]
[1729607911626,3.65,2637.9,2637.3,3.58714]
[1729607911627,0.37932,2637.5,2637.3,3.58714]
[1729607911933,1.89597,2638.4,2637.3,3.58714]
[1729607911934,4.02933,2637.4,2637.3,3.2078]
[1729607912130,0.37938,2637.0,2636.9,3.2078]
[1729607912431,0.37938,2637.0,2636.9,0.3794]
[1729607912625,1.137609,2637.4,2636.6,3.2078]
[1729607912926,0.37941,2636.8,2636.7,0.37942]
[1729607913150,3.65,2637.3,2636.6,3.2078]
[1729607913320,0.94851,2636.9,2636.3,3.2078]
[1729607913628,0.37948,2636.4,2636.3,3.2078]
[1729607914019,0.37947,2636.4,2636.3,3.2078]
[1729607914431,0.37949,2636.3,2636.2,0.3795]
[1729607914626,0.37948,2636.4,2636.3,0.37948]
[1729607914828,2.192,2636.6,2635.9,3.2078]
[1729607915130,0.37953,2636.0,2635.9,3.58734]
[1729607915331,0.37953,2636.0,2635.9,3.2078]
[1729607915629,0.37953,2636.0,2635.9,7.38094]
[1729607916137,0.37953,2636.0,2635.9,3.2078]
[1729607917632,0.18796221,2636.0,2635.5,3.2078]
[1729607917831,0.18796221,2636.0,2635.3,3.7762]
[1729607917832,0.37953,2636.0,2635.9,3.2078]
[1729607918029,0.5740254,2636.0,2635.9,3.2078]
[1729607918629,4.2240254,2636.0,2635.9,3.2078]
[1729607918935,4.2240254,2636.0,2635.4,0.37961]
[1729607918936,0.37958,2635.7,2635.4,0.37961]
[1729607919135,7.3,2635.5,2634.0,0.96925752]
[1729607919330,7.3,2635.5,2633.4,1.06866235]
[1729607919331,3.2078,2634.5,2633.4,1.42488313]
[1729607919633,3.65,2633.5,2633.0,3.2078]
[1729607919829,3.65,2633.5,2633.0,3.58775]
[1729607919830,2.193,2633.4,2633.0,3.58775]
[1729607920037,2.193,2633.4,2632.9,1.9689]
[1729607920237,3.65,2633.1,2632.9,1.9689]
[1729607920426,3.65,2633.1,2632.7,5.062]
[1729607920627,0.18870289,2633.0,2632.7,5.062]
[1729607920832,3.65,2633.1,2632.7,5.062]
[1729607921029,3.65,2633.1,2633.0,3.2078]
[1729607921233,5.843,2633.1,2633.0,3.2078]
[1729607921534,6.03614153,2633.1,2632.7,1.8542]
[1729607921834,5.843,2633.1,2632.9,3.2078]
[1729607922133,3.65,2633.1,2632.9,3.2078]
[1729607922340,2.194,2633.2,2633.0,3.7976]
[1729607922527,7.3178,2633.9,2632.9,3.2078]
[1729607922728,0.37988,2633.6,2633.1,3.2078]
[1729607923035,0.37988,2633.6,2632.7,1.8542]
[1729607923036,2.194,2633.8,2633.4,3.2078]
[1729607923333,0.37987,2633.7,2633.4,3.2078]
[1729607923737,7.3178,2633.9,2633.4,3.2078]
[1729607923939,2.194,2633.6,2633.4,3.2078]
[1729607924237,2.194,2633.5,2633.4,3.2078]
[1729607924628,0.37985,2633.8,2633.4,3.2078]
[1729607924936,0.37982,2634.0,2633.7,3.2078]
[1729607925435,4.11,2634.2,2633.7,3.2078]
[1729607925827,4.11,2633.9,2633.7,3.2078]
[1729607926029,2.194,2633.8,2633.7,3.2078]
[1729607926436,2.57385,2633.8,2633.7,3.2078]
[1729607926631,2.194,2633.8,2633.7,3.2078]
[1729607926934,2.57385,2633.8,2633.7,3.2078]
[1729607927333,2.194,2633.8,2633.7,3.2078]
[1729607927533,0.37982,2634.0,2633.7,3.2078]
[1729607927740,4.4898,2634.2,2633.7,3.58765]
[1729607928038,0.37985,2633.8,2633.7,3.2078]
[1729607928235,4.48984,2633.9,2633.7,3.2078]
[1729607928436,4.11,2633.9,2633.7,3.2078]
[1729607928830,4.11,2633.9,2633.7,3.58765]
[1729607929034,2.57381,2634.1,2633.9,0.37982]
[1729607929035,2.194,2634.1,2633.9,0.37982]
[1729607929340,2.5738,2634.1,2634.0,3.2078]
[1729607929735,2.194,2634.1,2634.0,3.2078]
[1729607930133,0.73220386,2634.5,2634.3,0.37977]
[1729607930335,2.194,2634.7,2634.4,3.2078]
[1729607930839,2.194,2634.7,2634.5,7.38354]
[1729607931040,2.194,2634.7,2634.5,3.58754]
[1729607931241,2.194,2634.7,2634.5,7.38354]
[1729607931741,4.6799541,2634.9,2634.5,7.38354]
[1729607931742,9.498,2635.1,2634.6,3.796]
[1729607931941,2.195,2635.0,2634.8,3.5875]
[1729607932139,0.37966,2635.1,2634.8,3.2078]
[1729607932345,2.195,2635.0,2634.8,3.5875]
[1729607932540,2.195,2635.0,2634.8,3.2078]
[1729607932836,6.305,2635.0,2634.8,3.2078]
[1729607933234,6.305,2635.0,2634.8,3.58749]
[1729607933633,27.58006,2635.2,2634.9,0.37969]
[1729607933843,2.195,2635.1,2634.9,0.37969]
[1729607934041,2.57467,2635.1,2634.8,3.2078]
[1729607934245,2.195,2635.1,2634.8,3.2078]
[1729607934444,2.57466,2635.1,2634.8,3.58749]
[1729607934742,2.195,2635.1,2634.8,3.58749]
[1729607934935,2.57467,2635.1,2634.8,3.2078]
[1729607935336,0.37968,2635.0,2634.8,3.2078]
[1729607935646,2.57467,2635.1,2634.8,3.2078]
[1729607935942,0.37968,2635.0,2634.8,3.2078]
[1729607936235,0.37968,2635.0,2634.6,36.0793]
[1729607936236,0.37969,2634.9,2634.6,36.0793]
[1729607936438,0.37971,2634.8,2634.6,36.0793]
[1729607936744,0.37969,2634.9,2634.6,2.25902]
[1729607936943,0.37969,2634.9,2634.8,3.2078]
[1729607937336,2.195,2635.1,2634.8,7.003]
[1729607937536,0.37967,2635.0,2634.8,3.2078]
[1729607937736,0.37969,2634.9,2634.8,3.2078]
[1729607942240,2.195,2635.1,2634.8,3.2078]
[1729607942436,2.11,2635.1,2635.0,0.37966]
[1729607943541,27.58006,2635.2,2635.0,3.7952]
[1729607943751,27.58006,2635.2,2634.6,0.94931]
[1729607943752,29.61206,2635.2,2635.1,3.2078]
[1729607943940,29.9917,2635.2,2635.1,3.2078]
[1729607944452,33.26206,2635.2,2635.1,3.2078]
[1729607944754,33.26206,2635.2,2635.1,3.58746]
[1729607945042,33.6417,2635.2,2635.1,3.2078]
[1729607945738,33.6417,2635.2,2635.0,0.37967]
[1729607946145,0.37967,2635.1,2634.9,2.16078]
[1729607946533,0.37967,2635.1,2634.9,1.7811]
[1729607946735,33.64171,2635.2,2634.9,1.7811]
[1729607946940,33.26206,2635.2,2634.9,1.7811]
[1729607947350,0.37966,2635.1,2635.0,0.37967]
[1729607947740,2.41166,2635.1,2635.0,0.37967]
[1729607948249,2.032,2635.1,2635.0,0.37967]
[1729607948752,2.41166,2635.1,2635.0,0.37967]
[1729607949146,2.032,2635.1,2634.9,1.7811]
[1729607949347,2.41166,2635.1,2635.0,0.37967]
[1729607950047,0.37967,2635.0,2634.9,1.7811]
[1729607950246,0.37969,2634.9,2634.8,3.2078]
[1729607950448,4.02969,2634.9,2634.8,3.2078]
[1729607950641,4.02969,2634.9,2634.8,3.5875]
[1729607951050,0.37969,2634.9,2634.8,3.5875]
[1729607951747,0.37969,2634.9,2634.8,3.2078]
[1729607952059,0.37969,2634.9,2634.8,3.5875]
[1729607952443,28.5292,2635.2,2634.8,3.2078]
[1729607952444,27.58006,2635.2,2634.8,3.2078]
[1729607952651,27.58006,2635.2,2635.1,3.58746]
[1729607952950,5.99744758,2635.2,2635.1,3.58746]
[1729607953164,4.82804758,2635.2,2635.1,7.38266]
[1729607953555,4.82804758,2635.2,2635.1,41.58266]
[1729607954054,3.89124758,2635.2,2635.1,41.58266]
[1729607954256,1.48329758,2635.2,2635.1,41.58266]
[1729607954450,0.00397758,2635.2,2635.1,41.58266]
[1729607954648,7.58e-06,2635.2,2635.1,43.10062895]
[1729607956950,2.032,2636.4,2635.8,0.94889]
[1729607957154,0.3795,2636.2,2636.1,3.2078]
[1729607957350,4.02949,2636.3,2636.1,3.2078]
[1729607957551,2.41148,2636.4,2636.3,0.37949]
[1729607957753,4.38087,2636.5,2636.4,0.37947]
[1729607958056,0.37948,2636.4,2636.3,0.37948]
[1729607958452,0.3795,2636.3,2636.2,0.37949]
[1729607958658,0.37948,2636.4,2636.3,0.37947]
[1729607959856,0.37948,2636.4,2636.1,3.2078]
[1729607959857,0.3795,2636.3,2636.2,0.37949]
[1729607960758,4.0014,2636.5,2636.1,3.2078]
[1729607960959,4.38086,2636.5,2636.4,3.2078]
[1729607963961,0.3795,2636.2,2636.1,3.2078]
[1729607965356,0.3795,2636.2,2635.9,0.37953]
[1729607965558,3.65,2636.3,2635.9,3.58733]
[1729607965758,0.37953,2636.0,2635.9,3.58733]
[1729607965952,0.37953,2636.0,2635.9,3.2078]
[1729607966358,0.37953,2636.0,2635.5,3.5874]
[1729607966359,0.37959,2635.6,2635.5,3.5874]
[1729607966657,0.37959,2635.6,2635.5,3.2078]
[1729607967363,0.37964,2635.3,2635.2,0.37962]
[1729607967662,0.37963,2635.4,2635.3,0.37962]
[1729607967852,0.37964,2635.2,2635.1,5.10540895]
[1729607968951,0.37964,2635.2,2635.1,4.72576895]
[1729607969160,0.37964,2635.2,2635.1,1.51796895]
[1729607969359,3.2078,2637.9,2635.1,12.17096895]
[1729607969667,3.2078,2637.9,2636.8,3.2078]
[1729607969668,1.8611,2637.6,2636.8,3.2078]
[1729607969851,0.37938,2637.1,2636.7,3.2078]
[1729607970053,2.031,2637.1,2636.7,3.2078]
[1729607970268,2.60391355,2637.1,2636.7,3.2078]
[1729607970653,2.22453355,2637.1,2636.7,3.2078]
[1729607971655,2.031,2637.0,2636.8,0.3794]
[1729607971861,2.031,2637.0,2636.8,0.37941]
[1729607972052,2.031,2637.0,2636.9,0.3794]
[1729607972456,2.031,2637.0,2636.7,3.2078]
[1729607972663,2.031,2637.0,2636.9,0.3794]
[1729607973059,2.031,2637.0,2636.7,3.2078]
[1729607973259,3.2078,2639.1,2636.9,7.3]
[1729607973464,3.2078,2638.8,2637.8,0.37926]
[1729607973668,5.7314,2639.2,2637.8,0.37926]
[1729607973669,6.8578,2639.0,2637.8,0.37926]
[1729607973962,6.8578,2639.0,2637.9,3.2078]
[1729607973963,0.37914,2638.7,2637.9,3.2078]
[1729607974152,6.8578,2638.7,2637.9,3.2078]
[1729607974357,6.8578,2638.7,2637.6,41.0578]
[1729607974660,6.8578,2638.7,2637.9,3.58705]
[1729607974857,6.8578,2638.7,2637.9,3.2078]
[1729607975059,3.65,2638.4,2637.9,3.2078]
[1729607975258,5.8376,2638.3,2637.9,3.2078]
[1729607975459,3.73683033,2638.7,2637.9,3.2078]
[1729607975671,11.76009,2639.1,2638.3,3.2078]
[1729607975862,1.993,2639.0,2638.3,3.2078]
[1729607976055,5.2008,2639.0,2638.3,3.2078]
[1729607976260,5.2008,2639.0,2637.9,3.2078]
[1729607976261,3.2078,2638.5,2637.9,3.2078]
[1729607976865,1.7979,2638.4,2637.9,3.2078]
[1729607977266,2.3722,2638.3,2637.6,3.2078]
[1729607977567,1.9356,2638.2,2637.3,3.2078]
[1729607977867,3.2078,2637.8,2637.3,3.2078]
[1729607978459,3.39389974,2637.8,2637.4,0.37932]
[1729607978667,3.2078,2637.8,2637.3,3.2078]
[1729607978860,3.2078,2637.8,2637.3,3.58714]
[1729607979259,0.18887083,2637.7,2637.5,0.37931]
[1729607979456,0.18887083,2637.7,2637.4,0.37932]
[1729607979665,3.2078,2637.8,2636.9,3.65]
[1729607979965,3.78092361,2637.8,2637.0,0.37938]
[1729607980164,3.40164361,2637.8,2636.9,0.3794]
[1729607980366,3.40164361,2637.8,2637.1,0.37936]
[1729607980367,3.78092361,2637.8,2637.1,0.37936]
[1729607980566,3.40164361,2637.8,2637.2,0.37935]
[1729607980770,3.40164361,2637.8,2637.1,3.2078]
[1729607980771,3.40164361,2637.8,2637.1,3.58716]
[1729607981363,3.78091361,2637.8,2637.1,3.58716]
[1729607981567,3.40164361,2637.8,2637.2,0.37935]
[1729607982168,3.40164361,2637.8,2637.2,0.37936]
[1729607982364,3.40164361,2637.8,2637.1,3.2078]
[1729607982565,1.992,2637.7,2637.5,0.37931]
[1729607982765,1.992,2637.7,2637.5,0.3793]
[1729607982967,1.992,2637.7,2637.1,3.2078]
[1729607983266,1.992,2637.7,2637.5,0.3793]
[1729607983670,1.992,2637.7,2637.4,3.2078]
[1729607983973,1.992,2637.7,2637.5,0.37931]
[1729607984176,1.992,2637.7,2637.4,3.2078]
[1729607984564,1.992,2637.7,2637.4,3.58712]
[1729607985461,3.2078,2637.8,2637.6,0.37929]
[1729607985661,3.2078,2637.8,2637.4,3.2078]
[1729607985862,3.2078,2637.8,2637.7,0.37928]
[1729607986063,5.1998,2637.8,2637.6,0.37929]
[1729607986465,5.1998,2637.8,2637.4,3.2078]
[1729607986875,5.1998,2637.8,2637.5,0.37931]
[1729607987376,5.1998,2637.8,2637.4,3.2078]
[1729607987673,5.1998,2637.8,2637.6,0.3793]
[1729607987876,5.1998,2637.8,2637.5,0.3793]
[1729607988266,3.2078,2637.8,2637.5,0.3793]
[1729607988478,1.8132,2638.3,2638.1,0.37923]
[1729607988669,5.1998,2638.4,2638.3,0.3792]
[1729607988867,1.992,2638.4,2638.3,0.3792]
[1729607989780,1.992,2638.4,2638.1,3.2078]
[1729607990874,0.3792,2638.3,2637.8,3.2078]
[1729607991372,0.37923,2638.1,2637.8,3.2078]
[1729607991579,1.992,2638.4,2637.8,3.2078]
[1729607991876,0.37923,2638.1,2637.5,3.2078]
[1729607992084,0.37924,2638.1,2637.5,3.5871]
[1729607992370,1.992,2638.4,2637.5,3.2078]
[1729607992573,1.992,2638.4,2637.7,0.37928]
[1729607992772,0.37922,2638.2,2637.7,0.37928]
[1729607993181,0.37922,2638.2,2637.5,3.2078]
[1729607993182,2.53076452,2638.4,2637.5,3.2078]
[1729607993473,0.37926,2637.9,2637.5,3.2078]
[1729607993678,0.18645921,2637.8,2637.5,3.2078]
[1729607993878,0.56572921,2637.8,2637.5,3.2078]
[1729607994177,0.56572921,2637.8,2637.3,0.37933]
[1729607994974,0.37928,2637.7,2637.3,0.37933]
[1729607995273,3.65,2637.9,2637.2,3.2078]
[1729607995477,3.5871,2637.6,2637.2,0.37935]
[1729607995779,1.992,2637.5,2637.2,0.37935]
[1729607996174,1.992,2637.5,2637.1,0.37936]
[1729607996380,1.992,2637.5,2636.9,6.8578]
[1729607996582,2.37132,2637.5,2637.1,0.37936]
[1729607996775,0.37933,2637.4,2637.0,0.37938]
[1729607997183,0.37935,2637.3,2637.0,0.37938]
[1729607998383,2.52283613,2637.5,2636.9,3.2078]
[1729607998582,4.59843,2637.1,2636.3,3.2078]
[1729607998890,4.59843,2637.1,2636.5,0.37945]
[1729607998891,0.37943,2636.7,2636.5,0.37945]
[1729607999178,1.992,2636.6,2636.5,0.37945]
[1729607999480,2.37145,2636.6,2636.4,0.37946]
[1729607999687,1.992,2636.6,2636.5,0.37946]
[1729608000179,2.37145,2636.6,2636.4,0.37947]
[1729608000384,1.992,2636.6,2636.5,0.37946]
[1729608001273,2.37144,2636.6,2636.4,0.37946]
[1729608001475,1.992,2636.6,2636.5,0.37946]
[1729608001684,1.992,2636.6,2636.4,0.37946]
[1729608001974,0.37947,2636.4,2636.3,3.2078]
[1729608002175,0.37947,2636.5,2636.3,3.58729]
[1729608002387,1.992,2636.6,2636.5,0.37946]
[1729608003480,1.99,2636.8,2636.5,3.7928]
[1729608003789,1.99,2636.8,2636.7,3.58723]
[1729608004083,1.8659,2637.5,2636.7,3.58723]
[1729608004084,5.202,2637.6,2636.7,6.8578]
[1729608004381,0.37937,2637.1,2637.0,3.2078]
[1729608005077,0.37937,2637.1,2636.4,3.65]
[1729608005078,0.94847,2637.0,2636.4,3.2078]
[1729608005281,3.89074,2637.6,2636.7,7.80637]
[1729608005282,6.15028,2637.6,2636.7,7.80637]
[1729608005484,6.15028,2637.6,2637.1,3.2078]
[1729608005485,0.37937,2637.2,2637.1,3.2078]
[1729608005786,0.37937,2637.2,2637.1,3.58717]
[1729608006082,0.37934,2637.3,2637.2,0.37935]
[1729608006281,0.37934,2637.3,2637.1,3.2078]
[1729608006282,2.94246,2637.6,2637.1,3.2078]
[1729608006482,0.37935,2637.3,2637.2,0.37935]
[1729608007282,1.99,2637.5,2637.1,3.58716]
[1729608007488,0.37935,2637.3,2637.1,3.58716]
[1729608007786,0.37935,2637.3,2637.1,3.2078]
[1729608007787,0.37936,2637.2,2637.1,3.2078]
[1729608008776,1.99,2637.3,2636.6,3.2078]
[1729608009079,3.65,2636.8,2636.0,34.57952]
[1729608009380,3.65,2636.8,2635.8,0.37955]
[1729608009381,0.37953,2636.0,2635.8,0.37955]
[1729608009586,0.37956,2635.8,2635.5,0.3796]
[1729608009790,0.37956,2635.8,2635.7,0.37957]
[1729608010078,0.37959,2635.6,2635.5,34.57959]
[1729608010280,0.94885,2636.0,2635.4,3.2078]
[1729608010584,0.3796,2635.5,2635.4,3.58741]
[1729608010977,0.37963,2635.3,2635.2,34.57963]
[1729608011187,4.1567,2635.8,2635.2,34.2]
[1729608011377,0.3796,2635.6,2635.5,0.37959]
[1729608011572,0.37961,2635.5,2635.4,0.3796]
[1729608011775,3.2078,2635.8,2635.2,34.2]
[1729608012081,0.3796,2635.6,2635.5,0.37959]
[1729608012882,0.37958,2635.7,2635.6,0.37958]
[1729608013277,0.3796,2635.5,2635.2,34.2]
[1729608013486,0.3796,2635.5,2635.4,0.37961]
[1729608013778,0.37959,2635.6,2635.5,0.37959]
[1729608014177,3.2078,2635.8,2635.2,34.2]
[1729608014373,0.37959,2635.7,2635.6,0.37958]
[1729608014580,0.37959,2635.6,2635.5,0.37959]
[1729608014985,3.2078,2635.8,2635.2,34.2]
[1729608015182,0.37963,2635.4,2635.3,0.37962]
[1729608015376,0.37961,2635.5,2635.4,0.3796]
[1729608015581,0.3796,2635.6,2635.5,0.37959]
[1729608016086,0.37961,2635.5,2635.4,0.37961]
[1729608016383,0.37962,2635.4,2635.3,0.37962]
[1729608016578,0.37961,2635.5,2635.4,0.37961]
[1729608017179,0.37962,2635.4,2635.3,0.37962]
[1729608017593,0.37964,2635.2,2635.1,1.89761895]
[1729608017882,0.37961,2635.5,2635.4,0.3796]
[1729608018087,5.57841,2635.5,2635.4,0.3796]
[1729608018287,2.37061,2635.5,2635.1,1.51796895]
[1729608018488,1.991,2635.5,2635.1,1.51796895]
[1729608018790,2.37061,2635.5,2635.4,0.37961]
[1729608020084,3.2078,2635.8,2635.4,3.7944]
[1729608020287,1.991,2635.7,2635.6,0.37959]
[1729608020488,3.58736,2635.8,2635.7,0.37957]
[1729608021386,3.2078,2635.8,2635.7,0.37957]
[1729608021577,3.58736,2635.8,2635.7,0.37957]
[1729608022588,5.1988,2635.8,2635.1,2.46710895]
[1729608022784,0.3796,2635.6,2635.5,0.37958]
[1729608023195,0.37961,2635.5,2635.4,0.3796]
[1729608024193,0.37961,2635.5,2635.4,0.37961]
[1729608025296,0.37962,2635.4,2635.3,0.37962]
[1729608025683,0.37964,2635.2,2635.1,1.89761895]
[1729608026195,1.8247,2635.4,2635.1,1.89761895]
[1729608026398,1.8247,2635.4,2635.3,0.37963]
[1729608026689,5.0322,2635.7,2635.6,0.37959]
[1729608026690,3.58739,2635.7,2635.6,0.37959]
[1729608026895,5.57839,2635.7,2635.6,0.37959]
[1729608027485,0.37961,2635.5,2635.4,0.3796]
[1729608028392,0.37959,2635.6,2635.5,0.37959]
[1729608028590,0.37961,2635.5,2635.4,0.37961]
[1729608028903,5.1988,2635.7,2635.1,2.46709895]
[1729608028904,0.3796,2635.6,2635.5,0.3796]
[1729608030199,3.2078,2635.7,2635.6,0.37959]
[1729608030400,5.57837,2635.7,2635.6,0.37959]
[1729608030600,5.1988,2635.7,2635.6,0.37959]
[1729608031294,5.57837,2635.7,2635.6,0.37959]
[1729608031496,1.991,2635.7,2635.6,0.37959]
[1729608033197,2.37057,2635.7,2635.6,0.37959]
[1729608033390,1.991,2635.7,2635.6,0.37959]
[1729608033789,2.37057,2635.7,2635.6,0.37959]
[1729608034191,1.991,2635.7,2635.6,0.37959]
[1729608034589,2.37057,2635.7,2635.6,0.37959]
[1729608035003,0.37962,2635.5,2635.1,1.51796895]
[1729608035203,0.37964,2635.2,2635.1,1.51796895]
[1729608035500,0.37964,2635.2,2635.1,1.89762895]
[1729608035712,0.37964,2635.2,2635.1,1.51796895]
[1729608036699,7.70433,2635.2,2634.4,4.1572]
[1729608036917,2.96,2634.9,2634.2,0.94947]
[1729608037091,0.37975,2634.6,2634.5,0.37974]
[1729608037900,0.37973,2634.7,2634.6,0.37972]
[1729608038296,2.36571,2634.8,2634.7,0.37972]
[1729608038493,3.2078,2635.0,2634.5,0.94936]
[1729608038803,3.58749,2635.0,2634.9,0.37969]
[1729608038994,5.57449,2635.0,2634.9,0.37969]
[1729608039189,0.37971,2634.8,2634.7,0.37971]
[1729608039397,0.37975,2634.5,2634.4,0.37975]
[1729608039591,0.37979,2634.3,2634.2,0.37978]
[1729608039799,0.3798,2634.2,2633.8,3.2078]
[1729608039994,3.58763,2634.0,2633.9,0.37982]
[1729608040195,1.987,2634.1,2633.8,0.37984]
[1729608040196,0.37985,2633.9,2633.8,0.37984]
[1729608040396,5.1948,2634.1,2633.8,0.37983]
[1729608040594,0.37984,2633.9,2633.8,0.37983]
[1729608040797,0.37985,2633.8,2633.7,1.89862586]
[1729608041096,5.1948,2634.1,2634.0,0.37982]
[1729608041297,5.1948,2634.1,2633.7,1.51877586]
[1729608041512,3.2078,2634.4,2633.7,4.72657586]
[1729608041694,3.2078,2634.4,2633.9,0.94958]
[1729608041695,1.987,2634.3,2633.9,0.94958]
[1729608041904,1.987,2634.3,2634.2,0.37979]
[1729608042407,5.1948,2634.4,2634.3,0.37977]
[1729608042708,11.483,2634.5,2634.3,3.796]
[1729608043005,11.483,2634.5,2634.4,0.37976]
[1729608044512,9.496,2634.5,2634.4,0.37976]
[1729608044900,8.9258624,2634.5,2634.4,0.37976]
[1729608049602,14.7167624,2634.5,2634.3,0.37977]
[1729608049914,10.9207624,2634.5,2634.4,0.37976]
[1729608050313,14.7167624,2634.5,2634.4,0.37976]
[1729608051910,14.7167624,2634.5,2634.4,1.8981323]
[1729608054219,15.0965024,2634.5,2634.4,1.5183723]
[1729608055511,15.0965024,2634.5,2634.1,0.3798]
[1729608055512,0.3798,2634.2,2634.1,0.3798]
[1729608055907,4.1758,2634.2,2634.1,0.3798]
[1729608056106,3.796,2634.2,2634.1,0.3798]
[1729608056614,3.796,2634.2,2633.8,0.94961]
[1729608056817,0.37979,2634.2,2634.1,0.37979]
[1729608057113,3.58758,2634.3,2634.2,0.37979]
[1729608057618,7.38358,2634.3,2634.2,0.37979]
[1729608058115,3.2078,2634.3,2634.2,0.37979]
[1729608058916,5.1948,2634.3,2634.2,0.37979]
[1729608059419,14.5707624,2634.5,2634.4,0.37976]
[1729608059420,10.9207624,2634.5,2634.4,0.37976]
[1729608059605,12.9077624,2634.5,2634.4,0.37976]
[1729608061215,8.9258624,2634.5,2634.4,0.37976]
[1729608061411,8.70946239,2634.5,2634.4,4.17576]
[1729608061607,7.93923239,2634.5,2634.4,4.17576]
[1729608061815,1.9608,2635.3,2635.2,0.37964]
[1729608062120,1.987,2635.3,2635.2,0.37964]
[1729608062411,1.987,2635.3,2635.2,4.17404]
[1729608062607,3.2078,2635.4,2635.3,0.37963]
[1729608062811,5.1948,2635.4,2635.3,0.37963]
[1729608063207,9.499,2635.7,2635.3,3.7944]
[1729608063412,2.34034,2636.0,2635.8,0.37955]
[1729608063613,1.987,2635.9,2635.8,0.37955]
[1729608064015,8.1286,2636.0,2635.4,0.94904]
[1729608064213,8.1286,2636.0,2635.9,0.37954]
[1729608064413,7.1556,2636.0,2635.9,0.37954]
[1729608064819,7.1556,2636.0,2635.8,0.37955]
[1729608064820,7.53514,2636.0,2635.8,0.37955]
[1729608065023,7.1556,2636.0,2635.9,0.37954]
[1729608065325,7.53513,2636.0,2635.9,0.37954]
[1729608065734,7.1556,2636.0,2635.9,0.37954]
[1729608066630,7.1556,2636.0,2635.4,0.94904]
[1729608066832,10.8056,2636.0,2635.6,0.37958]
[1729608067133,0.37958,2635.7,2635.5,0.37959]
[1729608067333,11.75444,2636.0,2635.5,0.3796]
[1729608067636,0.37958,2635.7,2635.5,0.3796]
[1729608067832,11.75444,2636.0,2635.5,0.3796]
[1729608068341,7.1496,2636.0,2635.9,0.37954]
[1729608069736,8.09156,2635.9,2635.6,0.94895]
[1729608069932,8.09156,2635.9,2635.8,0.37956]
[1729608070332,8.09156,2635.9,2635.3,0.94907]
[1729608070530,0.37957,2635.8,2635.6,0.37958]
[1729608070735,8.09156,2635.9,2635.7,0.37956]
[1729608070933,0.37956,2635.8,2635.7,0.37956]
[1729608071235,8.09156,2635.9,2635.3,0.94908]
[1729608071430,8.47111,2635.9,2635.3,0.94908]
[1729608071630,0.37956,2635.8,2635.7,0.37957]
[1729608071826,0.37956,2635.8,2635.1,0.94912]
[1729608071827,8.09156,2635.9,2635.1,0.94912]
[1729608072026,3.2078,2635.7,2635.5,0.3796]
[1729608072235,0.37959,2635.6,2635.5,0.3796]
[1729608072441,8.09156,2635.9,2635.5,0.3796]
[1729608072634,3.2078,2635.8,2635.1,0.94912]
[1729608072837,3.2078,2635.8,2635.5,0.37959]
[1729608073335,0.37959,2635.6,2635.5,0.37959]
[1729608073536,8.09156,2635.9,2635.1,0.94912]
[1729608073733,8.09156,2635.9,2635.5,0.37959]
[1729608074035,3.58737,2635.8,2635.7,0.37957]
[1729608074338,3.58737,2635.8,2635.3,0.94907]
[1729608074534,3.58736,2635.8,2635.7,0.37957]
[1729608075042,7.38096,2635.8,2635.7,0.37957]
[1729608075340,3.2078,2635.8,2635.7,0.37957]
[1729608075545,8.09156,2635.9,2635.8,0.37956]
[1729608075840,10.07256,2635.9,2635.8,0.37956]
[1729608076436,10.07256,2635.9,2635.4,0.94904]
[1729608076640,10.07256,2635.9,2635.8,0.37956]
[1729608077333,10.4521,2635.9,2635.8,0.37956]
[1729608077533,10.07256,2635.9,2635.8,0.37956]
[1729608078233,10.4521,2635.9,2635.8,0.37956]
[1729608078433,0.37956,2635.8,2635.7,0.37957]
[1729608078640,0.37958,2635.7,2635.6,0.37958]
[1729608078840,3.2078,2635.8,2635.7,0.37957]
[1729608079540,1.981,2635.8,2635.7,0.37957]
[1729608080038,8.09156,2635.9,2635.8,0.37956]
[1729608080244,8.09156,2635.9,2635.8,4.17316]
[1729608080440,2.35601,2635.9,2635.8,11.03096]
[1729608080647,5.8603,2636.9,2636.8,0.37941]
[1729608080836,1.8822,2636.9,2636.8,0.37941]
[1729608081035,0.37938,2637.1,2636.8,3.7928]
[1729608081346,3.2078,2637.2,2637.1,0.37937]
[1729608081544,0.37937,2637.1,2636.9,0.37938]
[1729608081738,5.1878,2637.2,2636.9,0.37938]
[1729608081944,5.1878,2637.2,2636.5,34.2]
[1729608082149,5.1878,2637.2,2636.9,0.37939]
[1729608082348,5.1878,2637.2,2636.7,0.37941]
[1729608082349,0.3794,2636.9,2636.7,0.37941]
[1729608082651,1.98,2637.1,2636.4,0.94868]
[1729608082652,0.37939,2637.0,2636.9,0.37939]
[1729608082949,1.98,2637.0,2636.9,0.37939]